fUST/lending_fUST_20240311
["ID","MTS","AMOUNT","RATE_DAILY","PERIOD"]
[318129871,1710086662553,854.1232175,0.00019735,2]
[318129875,1710086682704,3550.6187287,0.0001974,2]
[318129879,1710086793166,569.97281635,0.000189,2]
[318129998,1710087038462,-160.19387848,0.00020421,2]
[318129999,1710087038473,-325.10159524,0.00020422,2]
[318130000,1710087038482,-290.53112961,0.00020423,2]
[318130001,1710087038492,-294.77831715,0.00020423,2]
[318130002,1710087038502,-250.0,0.00020743,2]
[318130003,1710087038511,-167.399809,0.00020823,2]
[318130004,1710087038520,-3498.93796908,0.00020891,2]
[318130005,1710087038530,-1500.0,0.0002166,2]
[318130006,1710087038539,-186.559231,0.00021918,2]
[318130007,1710087038548,-154.0,0.00022,2]
[318130008,1710087038560,-875.78225158,0.0002217,2]
[318130009,1710087038569,-154.0,0.00022192,2]
[318130010,1710087038578,-42.64775368,0.00022484,2]
[318130050,1710087040435,-1982.38364749,0.00022484,2]
[318130052,1710087040445,-18363.421099,0.00022618,2]
[318130059,1710087040497,-29293.3683367,0.00022618,2]
[318130061,1710087040508,-1500.0,0.00022619,2]
[318130063,1710087040518,-1000.0,0.000227,2]
[318130065,1710087040527,-4183.40187922,0.00022739,2]
[318130067,1710087040536,-208.17134765,0.00022739,2]
[318130152,1710087043501,-291.82865235,0.00022739,2]
[318130154,1710087043510,-500.0,0.00022739,2]
[318130156,1710087043519,-500.0,0.00022739,2]
[318130158,1710087043528,-500.0,0.00022739,2]
[318130160,1710087043538,-529.98524018,0.00022739,2]
[318130162,1710087043547,-500.0,0.00022739,2]
[318130164,1710087043557,-500.0,0.00022739,2]
[318130166,1710087043566,-482.82563007,0.00022739,2]
[318130167,1710087043576,-570.48732142,0.00022739,2]
[318130169,1710087043585,-500.0,0.00022739,2]
[318130171,1710087043594,-500.0,0.00022739,2]
[318130173,1710087043604,-500.0,0.00022739,2]
[318130175,1710087043613,-500.0,0.00022739,2]
[318130177,1710087043622,-500.0,0.00022739,2]
[318130178,1710087043631,-500.0,0.00022799,2]
[318130180,1710087043640,-2084.30073227,0.000228,2]
[318130185,1710087043671,-192.12848254,0.000228,2]
[318130187,1710087043684,-5219.57078519,0.000228,2]
[318130189,1710087043695,-192.90372359,0.00022896,2]
[318130191,1710087043709,-566.49342459,0.000229,2]
[318130193,1710087043719,-766.35209952,0.000229,2]
[318130195,1710087043728,-500.0,0.00022993,2]
[318130196,1710087043738,-500.0,0.00022993,2]
[318130197,1710087043747,-500.0,0.00022993,2]
[318130198,1710087043756,-500.0,0.00022993,2]
[318130199,1710087043765,-581.56872574,0.00022993,2]
[318130200,1710087043776,-241.6771434,0.00022996,2]
[318130201,1710087043785,-169.06829712,0.00022996,2]
[318130202,1710087043795,-365.65225018,0.00022997,2]
[318130203,1710087043808,-270.83824271,0.00022997,2]
[318130235,1710087046581,-500.0,0.00022739,2]
[318130237,1710087046590,-277.2,0.00022799,2]
[318130247,1710087046678,-222.8,0.00022799,2]
[318130249,1710087046687,-9.44408857,0.00022997,2]
[318130251,1710087046697,-500.0,0.00022997,2]
[318130253,1710087046709,-500.0,0.00022997,2]
[318130256,1710087046719,-500.0,0.00022997,2]
[318130259,1710087046728,-500.0,0.00022997,2]
[318130262,1710087046739,-500.0,0.00022997,2]
[318130265,1710087046748,-500.0,0.00022997,2]
[318130268,1710087046757,-500.0,0.00022997,2]
[318130271,1710087046767,-500.0,0.00022997,2]
[318130274,1710087046776,-500.0,0.00022997,2]
[318130277,1710087046786,-500.0,0.00022997,2]
[318130279,1710087046796,-1498.25591143,0.00022998,2]
[318131625,1710087288151,508.0,0.00024777,30]
[318131713,1710088233372,-325.10159524,0.00020383,2]
[318131715,1710088233383,-290.53112961,0.00020384,2]
[318131717,1710088233393,-268.42262152,0.00020385,2]
[318131719,1710088233405,-26.35569563,0.00020385,2]
[318131721,1710088233416,-3498.93796908,0.00020385,2]
[318131723,1710088233426,-404.53047881,0.00020386,2]
[318131725,1710088233435,-280.54842491,0.00020386,2]
[318131727,1710088233444,-558.3857874,0.00020386,2]
[318131729,1710088233454,-8484.73689177,0.00020388,2]
[318131731,1710088233464,-168.909684,0.00020418,2]
[318131733,1710088233474,-166.5097194,0.00020572,2]
[318131735,1710088233483,-204.680138,0.00020941,2]
[318131737,1710088233492,-250.0,0.0002097,2]
[318131739,1710088233501,-186.5592323,0.00021918,2]
[318131741,1710088233510,-154.0,0.00022,2]
[318131743,1710088233520,-154.0,0.00022192,2]
[318131745,1710088233529,-464.60551319,0.00022677,2]
[318131747,1710088233537,-500.0,0.00022739,2]
[318131748,1710088233547,-560.83445176,0.00022739,2]
[318131750,1710088233556,-500.0,0.00022739,2]
[318131752,1710088233566,-170.44986528,0.00022896,2]
[318131755,1710088233577,-1348.94738353,0.000229,2]
[318131756,1710088233587,-1137.24682762,0.000229,2]
[318131758,1710088233598,-10005.23639538,0.00022953,2]
[318131760,1710088233609,-500.0,0.00022996,2]
[318131762,1710088233620,-500.0,0.00022996,2]
[318131764,1710088233630,-500.0,0.00022996,2]
[318131766,1710088233641,-500.0,0.00022996,2]
[318131768,1710088233651,-500.0,0.00022996,2]
[318131770,1710088233661,-320.44093844,0.00022996,2]
[318131772,1710088233671,-591.65894301,0.00022996,2]
[318131774,1710088233681,-157.84449621,0.00022997,2]
[318131776,1710088233690,-500.0,0.00022997,2]
[318131778,1710088233700,-500.0,0.00022997,2]
[318131780,1710088233710,-500.0,0.00022997,2]
[318131782,1710088233722,-290.7733621,0.00022997,2]
[318131784,1710088233733,-387.23200863,0.00022997,2]
[318131786,1710088233743,-165.95657512,0.00022997,2]
[318131788,1710088233754,-500.0,0.00022997,2]
[318131790,1710088233764,-500.0,0.00022997,2]
[318131792,1710088233775,-500.0,0.00022997,2]
[318131794,1710088233785,-500.0,0.00022997,2]
[318131796,1710088233796,-500.0,0.00022997,2]
[318131798,1710088233807,-562.44156691,0.00022997,2]
[318131800,1710088233816,-500.0,0.00022997,2]
[318131802,1710088233825,-622.61670003,0.00022997,2]
[318131804,1710088233835,-500.0,0.00022997,2]
[318131806,1710088233844,-500.0,0.00022997,2]
[318131808,1710088233854,-397.15789677,0.00022997,2]
[318131810,1710088233864,-500.0,0.00022997,2]
[318131812,1710088233875,-500.0,0.00022997,2]
[318131814,1710088233884,-511.5850356,0.00022997,2]
[318131816,1710088233893,-420.00938652,0.00022997,2]
[318131818,1710088233903,-500.0,0.00022997,2]
[318131820,1710088233915,-500.0,0.00022997,2]
[318131822,1710088233925,-581.85436799,0.00022997,2]
[318131824,1710088233934,-155.12720431,0.00022997,2]
[318131826,1710088233943,-500.0,0.00022997,2]
[318131828,1710088233952,-500.0,0.00022997,2]
[318131830,1710088233961,-500.0,0.00022997,2]
[318131832,1710088233971,-500.0,0.00022997,2]
[318131834,1710088233980,-500.0,0.00022997,2]
[318131836,1710088233989,-500.0,0.00022997,2]
[318131838,1710088233998,-440.79637766,0.00022997,2]
[318131840,1710088234011,-59.20362234,0.00022997,2]
[318131842,1710088234023,-500.0,0.00022997,2]
[318131844,1710088234032,-587.33972993,0.00022997,2]
[318131846,1710088234041,-500.0,0.00022997,2]
[318131847,1710088234051,-500.0,0.00022997,2]
[318131849,1710088234060,-441.05433468,0.00022997,2]
[318131851,1710088234071,-500.0,0.00022997,2]
[318131853,1710088234082,-500.0,0.00022997,2]
[318131855,1710088234091,-500.0,0.00022997,2]
[318131857,1710088234101,-500.0,0.00022997,2]
[318131859,1710088234111,-500.0,0.00022997,2]
[318131861,1710088234121,-208.90181849,0.00022997,2]
[318131863,1710088234130,-500.0,0.00022997,2]
[318131865,1710088234139,-500.0,0.00022997,2]
[318131867,1710088234150,-410.55183044,0.00022997,2]
[318131869,1710088234159,-500.0,0.00022997,2]
[318131871,1710088234168,-500.0,0.00022997,2]
[318131873,1710088234178,-500.0,0.00022997,2]
[318131875,1710088234187,-500.0,0.00022997,2]
[318131877,1710088234197,-500.0,0.00022997,2]
[318131879,1710088234206,-500.0,0.00022997,2]
[318131881,1710088234215,-500.0,0.00022997,2]
[318131883,1710088234225,-500.0,0.00022997,2]
[318131885,1710088234234,-500.0,0.00022997,2]
[318131887,1710088234243,-500.0,0.00022997,2]
[318131889,1710088234252,-500.0,0.00022997,2]
[318131891,1710088234262,-500.0,0.00022997,2]
[318131893,1710088234271,-500.0,0.00022997,2]
[318131895,1710088234281,-500.0,0.00022997,2]
[318131896,1710088234290,-500.0,0.00022997,2]
[318131898,1710088234299,-500.0,0.00022997,2]
[318131900,1710088234309,-500.0,0.00022997,2]
[318131902,1710088234318,-500.0,0.00022997,2]
[318131904,1710088234327,-500.0,0.00022997,2]
[318131906,1710088234337,-500.0,0.00022997,2]
[318131908,1710088234346,-500.0,0.00022997,2]
[318131910,1710088234355,-500.0,0.00022997,2]
[318131912,1710088234364,-502.36020276,0.00022997,2]
[318131914,1710088234376,-429.01775122,0.00022997,2]
[318131916,1710088234385,-500.0,0.00022997,2]
[318131918,1710088234394,-492.46,0.00022997,2]
[318131920,1710088234403,-500.0,0.00022997,2]
[318131922,1710088234412,-500.0,0.00022997,2]
[318131924,1710088234421,-500.0,0.00022997,2]
[318131926,1710088234432,-500.0,0.00022997,2]
[318131928,1710088234441,-500.0,0.00022997,2]
[318131930,1710088234451,-500.0,0.00022997,2]
[318131932,1710088234460,-10577.500737,0.00022998,2]
[318131934,1710088234472,-57681.48156419,0.00022998,2]
[318131936,1710088234481,-627.10960886,0.00022998,2]
[318131938,1710088234490,-155.09150399,0.00022998,2]
[318131940,1710088234500,-171.30969927,0.00022998,2]
[318131942,1710088234509,-155.44933366,0.00022998,2]
[318131944,1710088234518,-184.20532805,0.00022998,2]
[318131946,1710088234528,-2777.42124331,0.00022998,2]
[318131948,1710088234537,-684.59681226,0.00022998,2]
[318131950,1710088234546,-155.07443573,0.00022998,2]
[318131952,1710088234555,-589.51621214,0.00022998,2]
[318131954,1710088234564,-6418.68499709,0.00022998,2]
[318132196,1710088239274,-658.93879695,0.00022998,2]
[318132199,1710088239288,-4562.09403516,0.00022998,2]
[318132201,1710088239299,-5380.0309227,0.00022998,2]
[318132203,1710088239311,-26502.46346219,0.00022998,2]
[318132205,1710088239322,-223.87308963,0.00022998,2]
[318132207,1710088239332,-188.41177765,0.00022998,2]
[318132209,1710088239342,-245.81887907,0.00022998,2]
[318132211,1710088239354,-538.93657172,0.00022998,2]
[318132213,1710088239365,-179.6642469,0.00022998,2]
[318132215,1710088239375,-1473.66141674,0.00022998,2]
[318132217,1710088239385,-1491.19396294,0.00022998,2]
[318132219,1710088239395,-238.84175043,0.00022998,2]
[318132221,1710088239405,-155.88805604,0.00022998,2]
[318132223,1710088239414,-563.10577055,0.00022998,2]
[318132225,1710088239424,-181.58112489,0.00022998,2]
[318132227,1710088239433,-420.3555564,0.00022998,2]
[318132229,1710088239443,-202.09562416,0.00022998,2]
[318132231,1710088239453,-303.24150218,0.00022998,2]
[318132233,1710088239462,-634.93921734,0.00022998,2]
[318132235,1710088239471,-456.44937557,0.00022998,2]
[318132237,1710088239481,-155.11944197,0.00022998,2]
[318132238,1710088239491,-155.12720431,0.00022998,2]
[318132240,1710088239501,-422.56971318,0.00022998,2]
[318132243,1710088239512,-500.0,0.00022998,2]
[318132245,1710088239523,-500.0,0.00022998,2]
[318132247,1710088239535,-500.0,0.00022998,2]
[318132249,1710088239545,-500.0,0.00022998,2]
[318132251,1710088239555,-500.0,0.00022998,2]
[318132253,1710088239566,-500.0,0.00022998,2]
[318132255,1710088239575,-157.12783476,0.00022999,2]
[318132257,1710088239587,-500.0,0.00022999,2]
[318132259,1710088239597,-500.0,0.00022999,2]
[318132261,1710088239608,-500.0,0.00022999,2]
[318132263,1710088239618,-623.70090105,0.00022999,2]
[318132265,1710088239629,-278.36668865,0.00022999,2]
[318132267,1710088239641,-221.63331135,0.00022999,2]
[318132269,1710088239652,-500.0,0.00022999,2]
[318132271,1710088239662,-500.0,0.00022999,2]
[318132273,1710088239671,-500.0,0.00022999,2]
[318132275,1710088239682,-500.0,0.00022999,2]
[318132277,1710088239691,-502.37509097,0.00022999,2]
[318132279,1710088239702,-500.0,0.00022999,2]
[318132281,1710088239711,-500.0,0.00022999,2]
[318132283,1710088239721,-30.47643432,0.00022999,2]
[318132339,1710088240632,-169.54422804,0.00022999,2]
[318132340,1710088240642,-500.0,0.00022999,2]
[318132342,1710088240651,-500.0,0.00022999,2]
[318132343,1710088240660,-500.0,0.00022999,2]
[318132345,1710088240669,-500.0,0.00022999,2]
[318132347,1710088240679,-500.0,0.00022999,2]
[318132349,1710088240688,-500.0,0.00022999,2]
[318132351,1710088240697,-178.25577196,0.00022999,2]
[318132353,1710088240709,-321.74422804,0.00022999,2]
[318132355,1710088240718,-500.0,0.00022999,2]
[318132357,1710088240727,-281.11,0.00022999,2]
[318132359,1710088240736,-500.0,0.00022999,2]
[318132360,1710088240745,-500.0,0.00022999,2]
[318132362,1710088240755,-500.0,0.00022999,2]
[318132364,1710088240764,-500.0,0.00022999,2]
[318132366,1710088240773,-500.0,0.00022999,2]
[318132368,1710088240783,-500.0,0.00022999,2]
[318132370,1710088240793,-500.0,0.00022999,2]
[318132372,1710088240802,-463.59015943,0.00022999,2]
[318132373,1710088240813,-500.0,0.00022999,2]
[318132376,1710088240824,-500.0,0.00022999,2]
[318132377,1710088240835,-500.0,0.00022999,2]
[318132379,1710088240844,-500.0,0.00022999,2]
[318132380,1710088240854,-500.0,0.00022999,2]
[318132381,1710088240864,-500.0,0.00022999,2]
[318132383,1710088240873,-500.0,0.00022999,2]
[318132385,1710088240883,-500.0,0.00022999,2]
[318132387,1710088240893,-500.0,0.00022999,2]
[318132388,1710088240902,-500.0,0.00022999,2]
[318132390,1710088240914,-500.0,0.00022999,2]
[318132392,1710088240923,-167.2,0.00022999,2]
[318132394,1710088240933,-500.0,0.00022999,2]
[318132396,1710088240942,-500.0,0.00022999,2]
[318132398,1710088240953,-500.0,0.00022999,2]
[318132400,1710088240963,-500.0,0.00022999,2]
[318132402,1710088240972,-500.0,0.00022999,2]
[318132404,1710088240981,-500.0,0.00022999,2]
[318132406,1710088240992,-500.0,0.00022999,2]
[318132408,1710088241002,-500.0,0.00022999,2]
[318132411,1710088241012,-500.0,0.00022999,2]
[318132413,1710088241024,-500.0,0.00022999,2]
[318132414,1710088241035,-500.0,0.00022999,2]
[318132416,1710088241044,-500.0,0.00022999,2]
[318132424,1710088241120,-500.0,0.00022999,2]
[318132426,1710088241143,-500.0,0.00022999,2]
[318132428,1710088241154,-520.98550362,0.00022999,2]
[318132430,1710088241163,-500.0,0.00022999,2]
[318132432,1710088241173,-500.0,0.00022999,2]
[318132434,1710088241183,-592.27784484,0.00022999,2]
[318132436,1710088241197,-7339.71545473,0.00023,6]
[318132438,1710088241206,-229.97088705,0.00023,2]
[318132440,1710088241216,-12539.60629534,0.00023,2]
[318132442,1710088241225,-944.40590766,0.00023,2]
[318132444,1710088241235,-5009.5214038,0.00023,2]
[318132446,1710088241245,-39976.0,0.00023,3]
[318132448,1710088241255,-174.0,0.00023,2]
[318132450,1710088241265,-268.867465,0.00023,2]
[318132452,1710088241276,-435618.6706741,0.00023,6]
[318132454,1710088241286,-2000.0,0.00023,2]
[318132456,1710088241297,-2000.0,0.00023,2]
[318132458,1710088241306,-538.0,0.00023,2]
[318132460,1710088241316,-2000.0,0.0002301,2]
[318132462,1710088241326,-2000.0,0.0002301,2]
[318132464,1710088241336,-154.0,0.00023014,2]
[318132465,1710088241346,-2000.0,0.0002302,2]
[318132467,1710088241355,-2000.0,0.0002302,2]
[318132469,1710088241364,-2000.0,0.0002303,2]
[318132471,1710088241373,-2000.0,0.0002303,2]
[318132474,1710088241383,-2000.0,0.0002304,2]
[318132476,1710088241392,-2000.0,0.0002304,2]
[318132477,1710088241401,-2000.0,0.0002305,2]
[318132479,1710088241411,-2000.0,0.0002305,2]
[318132481,1710088241420,-2075.120601,0.0002306,2]
[318132483,1710088241429,-2000.0,0.0002306,2]
[318132485,1710088241438,-2000.0,0.0002307,2]
[318132487,1710088241447,-2000.0,0.0002308,2]
[318132489,1710088241455,-2000.0,0.0002309,2]
[318132491,1710088241464,-1137.24682755,0.00023097,2]
[318132493,1710088241474,-2000.0,0.000231,2]
[318132494,1710088241484,-2000.0,0.0002311,2]
[318132496,1710088241494,-2000.0,0.0002312,2]
[318132499,1710088241505,-2000.0,0.0002313,2]
[318132501,1710088241516,-2000.0,0.0002314,2]
[318132503,1710088241526,-2000.0,0.0002315,2]
[318132504,1710088241537,-2000.0,0.0002316,3]
[318132505,1710088241547,-2000.0,0.0002317,3]
[318132506,1710088241557,-2000.0,0.0002318,3]
[318132508,1710088241567,-469.98406,0.00023189,2]
[318132510,1710088241578,-415.670188,0.00023189,2]
[318132511,1710088241590,-2000.0,0.0002319,3]
[318132512,1710088241599,-2000.0,0.000232,3]
[318132513,1710088241609,-2000.0,0.0002321,3]
[318132515,1710088241619,-2000.0,0.0002322,3]
[318132517,1710088241629,-3413.74165,0.0002323,3]
[318132518,1710088241638,-161.054423,0.00023257,2]
[318132519,1710088241649,-322.108845,0.00023257,2]
[318132520,1710088241659,-231.345532,0.00023257,2]
[318132521,1710088241669,-1137.24682755,0.00023294,2]
[318132522,1710088241680,-170.44986526,0.00023489,2]
[318132523,1710088241690,-1137.24682755,0.00023492,2]
[318132524,1710088241700,-192.787944,0.00023538,2]
[318132525,1710088241709,-161.054423,0.00023538,2]
[318132526,1710088241719,-322.108845,0.00023538,2]
[318132527,1710088241730,-231.345532,0.00023538,2]
[318132528,1710088241739,-1137.24682755,0.00023689,2]
[318132529,1710088241749,-4308.69058974,0.000238,14]
[318132530,1710088241760,-310.239139,0.00023808,2]
[318132531,1710088241770,-1137.24682755,0.00023886,2]
[318132532,1710088241780,-23681.65351736,0.00023911,2]
[318132533,1710088241790,-19299.15033955,0.00024,4]
[318132534,1710088241801,-1492.56529398,0.00024,2]
[318132535,1710088241813,-500.0,0.00024,3]
[318132536,1710088241823,-306.0,0.00024,2]
[318132537,1710088241834,-170.44986526,0.00024082,2]
[318132538,1710088241843,-1137.24682755,0.00024083,2]
[318132539,1710088241852,-195.0,0.0002415,18]
[318132540,1710088241862,-155.0,0.00024164,2]
[318132541,1710088241871,-2554.3,0.000242,4]
[318132542,1710088241881,-1137.24682755,0.00024281,2]
[318132543,1710088241892,-30000.0,0.00024451,5]
[318132544,1710088241901,-1137.24682755,0.00024478,2]
[318132545,1710088241911,-1000.0,0.000245,2]
[318132546,1710088241921,-500.0,0.00024657,2]
[318132547,1710088241931,-380.0,0.00024658,2]
[318132548,1710088241940,-200.0,0.00024658,2]
[318132549,1710088241950,-1137.24682755,0.00024675,2]
[318132550,1710088241961,-170.44986526,0.00024675,2]
[318132551,1710088241971,-500.0,0.00024699,2]
[318132552,1710088241982,-1500.0,0.000247,2]
[318132554,1710088241991,-1500.0,0.000247,2]
[318132556,1710088242001,-1500.0,0.000247,2]
[318132558,1710088242010,-1500.0,0.000247,2]
[318132560,1710088242021,-1500.0,0.000247,2]
[318132562,1710088242031,-1516.95,0.000247,2]
[318132563,1710088242040,-1500.0,0.000247,2]
[318132565,1710088242055,-1500.0,0.000247,2]
[318132567,1710088242064,-293.75416211,0.00024705,2]
[318132569,1710088242074,-226.66621367,0.00024725,2]
[318132571,1710088242084,-221.42835979,0.00024725,2]
[318132573,1710088242093,-591.77641745,0.00024729,2]
[318132575,1710088242103,-523.56833633,0.00024733,2]
[318132577,1710088242113,-207.09446127,0.00024733,2]
[318132579,1710088242123,-1352.85424475,0.00024733,2]
[318132581,1710088242134,-197.88183459,0.00024733,2]
[318132583,1710088242144,-243.17385658,0.00024733,2]
[318132585,1710088242154,-214.32734243,0.00024733,2]
[318132587,1710088242163,-274.97926152,0.00024733,2]
[318132589,1710088242173,-279.90566539,0.00024733,2]
[318132591,1710088242182,-271.72472086,0.00024733,2]
[318132593,1710088242192,-155.51366642,0.00024733,2]
[318132595,1710088242201,-179.62552417,0.00024733,2]
[318132597,1710088242211,-166.14507047,0.00024733,2]
[318132599,1710088242221,-191.7752714,0.00024733,2]
[318132601,1710088242233,-219.0,0.00024733,2]
[318132602,1710088242242,-1886.49783361,0.00024733,2]
[318132604,1710088242252,-155.11324902,0.00024741,2]
[318132606,1710088242261,-1445.23380236,0.00024743,2]
[318132608,1710088242271,-1391.66652106,0.00024774,2]
[318132609,1710088242282,-200.05012685,0.00024775,30]
[318132611,1710088242297,-147520.45463366,0.00024775,30]
[318132614,1710088242311,-950.17822799,0.00024775,2]
[318132615,1710088242324,-120000.0,0.00024775,30]
[318132616,1710088242338,-883.98291173,0.00024775,2]
[318132617,1710088242350,-310.10762198,0.00024775,2]
[318132619,1710088242362,-67086.38410047,0.00024775,60]
[318132621,1710088242378,-1590.9002,0.00024775,60]
[318132623,1710088242392,-1000.5257214,0.00024775,60]
[318132625,1710088242406,-3909.4,0.00024775,60]
[318132695,1710088243699,-66499.99999999,0.00024775,60]
[318132703,1710088243759,-8717.10000047,0.00024775,60]
[318132705,1710088243773,-2946.55810883,0.00024775,60]
[318132708,1710088243786,-3099.46461186,0.00024775,60]
[318132710,1710088243799,-450.90378915,0.00024775,60]
[318132714,1710088243822,-500.0,0.00024775,60]
[318133048,1710088246793,-418.53139877,0.00022998,2]
[318133050,1710088246804,-558.04712506,0.00024774,2]
[318133052,1710088246814,-435.35042651,0.00024774,2]
[318133054,1710088246824,-3498.93796908,0.00024774,2]
[318133057,1710088246834,-2143.52878058,0.00024775,60]
[318133059,1710088246849,-891.13015,0.00024775,60]
[318133063,1710088246864,-4330.85285012,0.00024775,60]
[318133072,1710088246943,-626.02966503,0.00024775,60]
[318133923,1710089431883,-325.10159524,0.00021698,2]
[318133925,1710089431893,-745.89935805,0.00021698,2]
[318133927,1710089431902,-39.81110963,0.00021699,2]
[318134491,1710089437899,-254.96720752,0.00021699,2]
[318134493,1710089437909,-10.90763664,0.00021705,2]
[318134496,1710089437921,-193.77250136,0.00021705,2]
[318134498,1710089437931,-309.73700879,0.00022675,2]
[318134500,1710089437941,-1996.1678473,0.00022908,2]
[318134502,1710089437951,-184.72264255,0.00022996,2]
[318134504,1710089437963,-315.27735745,0.00022996,2]
[318134506,1710089437972,-500.0,0.00022996,2]
[318134508,1710089437982,-500.0,0.00022996,2]
[318134510,1710089437991,-500.0,0.00022996,2]
[318134513,1710089438001,-358.90340551,0.00022996,2]
[318134515,1710089438010,-500.0,0.00022996,2]
[318134517,1710089438019,-500.0,0.00022996,2]
[318134519,1710089438028,-500.0,0.00022996,2]
[318134521,1710089438037,-108.36474658,0.00022996,2]
[318134535,1710089439808,-392.37651816,0.00022996,2]
[318134536,1710089439818,-500.0,0.00022996,2]
[318134537,1710089439829,-500.0,0.00022996,2]
[318134538,1710089439838,-500.0,0.00022996,2]
[318134539,1710089439848,-516.850155,0.00022996,2]
[318134540,1710089439858,-500.0,0.00022996,2]
[318134541,1710089439867,-500.0,0.00022996,2]
[318134543,1710089439878,-500.0,0.00022996,2]
[318134545,1710089439887,-500.0,0.00022996,2]
[318134547,1710089439897,-571.01,0.00022996,2]
[318134549,1710089439906,-500.0,0.00022996,2]
[318134551,1710089439915,-500.0,0.00022996,2]
[318134553,1710089439925,-500.0,0.00022996,2]
[318134555,1710089439934,-500.0,0.00022996,2]
[318134557,1710089439944,-625.16055441,0.00022996,2]
[318134559,1710089439953,-500.0,0.00022996,2]
[318134561,1710089439962,-500.0,0.00022996,2]
[318134563,1710089439971,-500.0,0.00022996,2]
[318134565,1710089439980,-902.26,0.00022996,2]
[318134567,1710089439990,-500.0,0.00022996,2]
[318134569,1710089440000,-500.0,0.00022996,2]
[318134571,1710089440010,-500.0,0.00022996,2]
[318134573,1710089440019,-286.43182916,0.00022996,2]
[318134575,1710089440032,-213.56817084,0.00022996,2]
[318134578,1710089440042,-500.0,0.00022996,2]
[318134580,1710089440051,-1398.52607683,0.00022996,2]
[318134582,1710089440063,-2449.63392317,0.00022996,2]
[318134584,1710089440072,-500.0,0.00022996,2]
[318134586,1710089440081,-500.0,0.00022997,2]
[318134588,1710089440090,-500.0,0.00022997,2]
[318134599,1710089440216,-500.0,0.00022997,2]
[318134601,1710089440230,-256.06844297,0.00022997,2]
[318134603,1710089440239,-500.0,0.00022997,2]
[318134604,1710089440248,-500.0,0.00022997,2]
[318134605,1710089440257,-500.42789894,0.00022997,2]
[318134606,1710089440267,-500.0,0.00022997,2]
[318134607,1710089440277,-500.0,0.00022997,2]
[318134608,1710089440286,-500.0,0.00022997,2]
[318134609,1710089440296,-500.0,0.00022997,2]
[318134610,1710089440305,-500.0,0.00022997,2]
[318134611,1710089440315,-633.92840532,0.00022997,2]
[318134612,1710089440325,-500.0,0.00022997,2]
[318134613,1710089440335,-500.0,0.00022997,2]
[318134614,1710089440344,-500.0,0.00022997,2]
[318134615,1710089440354,-500.0,0.00022997,2]
[318134617,1710089440364,-500.0,0.00022997,2]
[318134619,1710089440376,-500.0,0.00022997,2]
[318134621,1710089440385,-500.0,0.00022997,2]
[318134623,1710089440395,-500.0,0.00022997,2]
[318134625,1710089440404,-500.0,0.00022997,2]
[318134627,1710089440414,-176.85099367,0.00022997,2]
[318134628,1710089440423,-500.0,0.00022997,2]
[318134629,1710089440433,-500.0,0.00022997,2]
[318134631,1710089440442,-500.0,0.00022998,2]
[318134633,1710089440452,-500.0,0.00022998,2]
[318134635,1710089440462,-500.0,0.00022998,2]
[318134637,1710089440471,-500.0,0.00022998,2]
[318134638,1710089440481,-500.0,0.00022998,2]
[318134639,1710089440490,-500.0,0.00022998,2]
[318134640,1710089440499,-500.0,0.00022998,2]
[318134641,1710089440509,-529.09157722,0.00022998,2]
[318134642,1710089440518,-500.0,0.00022998,2]
[318134643,1710089440528,-500.0,0.00022998,2]
[318134644,1710089440538,-500.0,0.00022998,2]